[Event "Romanian Team Blitz Open 2022"]
[Site "Sebes"]
[Date "2022.12.04"]
[Round "7.19"]
[White "Ileana, George"]
[Black "Craciun, Ovidiu"]
[Result "1-0"]
[ECO "C78"]
[WhiteElo "2343"]
[BlackElo "1857"]
[Annotator "TA"]
[PlyCount "61"]
[EventDate "2022.12.04"]
[EventType "blitz"]
[EventCountry "ROU"]
[SourceTitle "playchess.com"]
[Source "ChessBase"]
[SourceQuality "1"]
[TimeControl "180+2"]

{[%evp 15,61,6,5,12,16,6,29,14,25,4,11,12,40,22,53,42,75,64,141,122,267,205,424,283,735,704,754,625,629,609,604,548,531,530,513,514,552,512,687,640,975,680,688,669,658,657,639,620]} 1. e4 {[%emt 0:00:02]} e5 {[%emt 0:00:01]} 2. Nf3 {[%emt 0:00:01]} Nc6 {[%emt 0:00:01]} 3. Bb5 {[%emt 0:00:01]} a6 {[%emt 0:00:00]} 4. Ba4 {[%emt 0:00:01]} Nf6 {[%emt 0:00:01]} 5. d3 {[%emt 0:00:01]} Bc5 {[%emt 0:00:05]} 6. O-O {[%emt 0:00:02]} b5 {[%emt 0:00:03]} 7. Bb3 {[%emt 0:00:01]} O-O {[%emt 0:00:04]} 8. c3 {[%emt 0:00:02]} d6 {[%emt 0:00:01]} 9. Nbd2 {[%emt 0:00:03][%cal Bb1d2,Bd2f1,Bf1g3][%mdl 32] C78: Ruy Lopez: Archangelsk and Möller Defences.} h6 {[%emt 0:00:14]} 10. Re1 $1 {[%emt 0:00:03] 10.Re1 is better than 10.h3.} Be6 {[%emt 0:00:04]} 11. Nf1 {[%emt 0:00:05] White has an edge.} Bb6 {[%emt 0:00:18]} 12. h3 {[%emt 0:00:05] [#]} Bxb3 $146 {[%emt 0:00:20]} ({Predecessor:} 12... Re8 13. Ng3 d5 14. Qe2 Qd7 15. Kh2 Rad8 16. Nh4 Na5 17. Bc2 dxe4 18. dxe4 Kh7 {0-1 (32) Sadikhov,U (2479)-Sargsyan,S (2512) Chess.com INT 2019}) 13. axb3 {[%emt 0:00:02]} (13. Qxb3 {keeps more tension.} Qd7 14. Bd2 Rfd8 15. a4) 13... Ne7 {[%emt 0:00:03]} 14. Ng3 {[%emt 0:00:06]} c5 {[%emt 0:00:06]} 15. Nh4 {[%emt 0:00:08]} Bc7 {[%emt 0:00:13]} 16. Nhf5 {[%emt 0:00:02][%cal Of5h6]} d5 {[%emt 0:00:11]} ({Black should try} 16... Kh7 $14) 17. Qf3 $16 {[%emt 0:00:05][%cal Oc1h6] [#] And now Bxh6! would win. White has more active pieces. The black rooks are badly placed.} dxe4 {[%emt 0:00:05] Loses the game.} (17... Nxf5 $16 18. Nxf5 Kh8) 18. dxe4 {[%emt 0:00:07][%cal Bd3e4,Be4f5][%mdl 32]} Ng6 $2 {[%emt 0:00:08]} (18... Nxf5 19. Nxf5 Kh8) 19. Be3 {[%emt 0:00:06] Strongly threatening Rad1.} Nd7 $2 {[%emt 0:00:33]} (19... Nf4 20. Bxc5 Re8) 20. Nh5 $18 {[%emt 0:00:11] White is clearly winning.} Nh4 {[%emt 0:00:16]} 21. Qg4 {[%emt 0:00:06][%csl Gf5,Gh5][%cal Rg4g7] [#]} Nxf5 {[%emt 0:00:07]} 22. exf5 {[%emt 0:00:02][%csl Gh5][%cal Rg4g7]} g6 {[%emt 0:00:10]} 23. Bxh6 {[%emt 0:00:10]} Nf6 {[%emt 0:00:05]} 24. Nxf6+ {[%emt 0:00:06]} Qxf6 {[%emt 0:00:02]} 25. Bxf8 {[%emt 0:00:03]} Kxf8 {[%emt 0:00:01]} 26. fxg6 {[%emt 0:00:02]} fxg6 {[%emt 0:00:08]} 27. Re3 {[%emt 0:00:04] Black must now prevent Rf3.} Kg7 {[%emt 0:00:05]} 28. Qd7+ {[%emt 0:00:07]} Qf7 {[%emt 0:00:01]} 29. Rd3 {[%emt 0:00:04]} Rf8 {[%emt 0:00:07]} 30. Qxf7+ {[%emt 0:00:06]} Rxf7 {[%emt 0:00:01]} 31. Rxa6 {[%emt 0:00:00] Weighted Error Value: White=0.51/Black=0.53} 1-0

[Event "Romanian Team Blitz Open 2022"]
[Site "Sebes"]
[Date "2022.12.04"]
[Round "7.20"]
[White "Stefan, Iulia-Cristiana"]
[Black "Tampea, Radu"]
[Result "1-0"]
[ECO "B25"]
[WhiteElo "1662"]
[BlackElo "2110"]
[Annotator "TA"]
[PlyCount "77"]
[EventDate "2022.12.04"]
[EventType "blitz"]
[EventCountry "ROU"]
[SourceTitle "playchess.com"]
[Source "ChessBase"]
[SourceQuality "1"]
[TimeControl "180+2"]

{[%evp 10,77,5,-25,-5,-15,-5,-16,-12,-27,11,-5,84,-14,136,72,110,64,177,170,177,169,307,310,296,283,325,318,311,302,304,251,245,177,229,213,197,110,102,124,100,90,125,134,1529,1441,1354,1071,6425,1609,1382,1185,1187,1183,1168,1142,5418,1060,1470,1470,29982,1225,29983,29979,29985,29968,29991,29992,29992,29993]} 1. e4 {[%emt 0:00:01]} c5 {[%emt 0:00:00]} 2. Nc3 {[%emt 0:00:01]} Nc6 {[%emt 0:00:01]} 3. g3 {[%emt 0:00:01]} g6 {[%emt 0:00:01]} 4. Bg2 {[%emt 0:00:01]} Bg7 {[%emt 0:00:01]} 5. d3 {[%emt 0:00:01]} d6 {[%emt 0:00:02]} 6. Nh3 {[%emt 0:00:02]} h6 {[%emt 0:00:02] B25: Closed Sicilian: 3 g3, lines without early Be3.} 7. O-O {[%emt 0:00:04]} e6 {[%emt 0:00:01]} 8. Be3 {[%emt 0:00:04]} Nge7 {[%emt 0:00:01] The position is equal.} 9. Qd2 {[%emt 0:00:13]} a6 {[%emt 0:00:04]} 10. f4 {[%emt 0:00:02] [#]} b5 $146 {[%emt 0:00:02]} (10... f5 $11) ({Predecessor:} 10... Bd4 11. Nd1 Bd7 12. c3 Bg7 13. Ndf2 Qc7 14. e5 b6 15. d4 Rd8 16. Ne4 Nf5 {1-0 (27) Bierwisch,B (2167)-Spurga,J (1899) Oberstdorf 2002}) 11. f5 {[%emt 0:00:09]} (11. e5 $1 $16) 11... Bd4 {[%emt 0:00:59]} (11... exf5 $11 12. Rae1 fxe4) 12. Rae1 {[%emt 0:00:38]} (12. f6 $142) 12... Qc7 {[%emt 0:00:16]} 13. Nd1 {[%emt 0:00:25]} (13. Nf4 $16) 13... Bb7 {[%emt 0:00:25]} ({Black should play} 13... exf5 $14 14. Nf4 Be5) 14. c3 $18 {[%emt 0:00:07]} Bxe3+ {[%emt 0:00:02]} 15. Nxe3 {[%emt 0:00:03] Black must now prevent fxe6.} O-O-O {[%emt 0:00:09]} (15... g5 $142 16. fxe6 fxe6) 16. fxe6 {[%emt 0:00:13]} fxe6 {[%emt 0:00:02] [#]} 17. Nf4 $1 {[%emt 0:00:10]} Rdf8 {[%emt 0:00:36]} 18. Nxe6 {[%emt 0:00:16]} Rxf1+ {[%emt 0:00:01]} 19. Rxf1 {[%emt 0:01:09]} ({Don't do} 19. Kxf1 $6 Qd7 $16) 19... Qd7 20. Nf4 {[%emt 0:00:00]} Kb8 {[%emt 0:00:06]} 21. Nfd5 {[%emt 0:00:00]} Ne5 {[%emt 0:00:16]} (21... Qd8 $142 22. Nf6 Ka7) 22. Nxe7 {[%emt 0:00:00]} Qxe7 {[%emt 0:00:01]} 23. Nd5 {[%emt 0:00:00]} (23. d4 $18 Nd7 24. Nd5 Bxd5 25. exd5) 23... Bxd5 {[%emt 0:00:01]} 24. exd5 {[%emt 0:00:00]} g5 {[%emt 0:00:07]} 25. d4 {[%emt 0:00:00]} cxd4 {[%emt 0:00:15]} 26. Qxd4 {[%emt 0:00:00]} Nd7 {[%emt 0:00:12][%mdl 8192] Inhibits Qb6+. A mistake that costs the game.} (26... Qc7 $16 27. Kh1 h5) 27. Qxh8+ {[%emt 0:00:00]} Kb7 {[%emt 0:00:03]} 28. Qd4 {[%emt 0:00:00]} Nc5 {[%emt 0:00:01]} 29. b4 {[%emt 0:00:01]} Nd7 {[%emt 0:00:01]} 30. Qd2 {[%emt 0:00:04]} Ne5 {[%emt 0:00:01]} 31. Re1 {[%emt 0:00:03]} h5 {[%emt 0:00:01]} 32. Qe2 {[%emt 0:00:08][%cal Oe2e5] Hoping for Qxe5!} h4 {[%emt 0:00:02]} 33. Rf1 {[%emt 0:00:02]} hxg3 {[%emt 0:00:02]} 34. hxg3 {[%emt 0:00:01]} Qc7 {[%emt 0:00:02] [#]} 35. Qe3 {[%emt 0:00:03]} (35. Qxe5 $142 $3 dxe5 36. d6+ e4 37. dxc7 Kxc7 38. Bxe4 Kd6 39. Bb7 Kd7 40. Bxa6) 35... g4 {[%emt 0:00:04]} 36. Rf6 {[%emt 0:00:04] White mates.} Qd8 {[%emt 0:00:03]} 37. Re6 {[%emt 0:00:02]} Qc7 {[%emt 0:00:03] [#]} 38. Rxe5 $1 {[%emt 0:00:01]} dxe5 {[%emt 0:00:02]} (38... Kc8 39. Re8+) 39. d6+ {[%emt 0:00:01] Weighted Error Value: White=0.30/Black=0.46} 1-0

[Event "Romanian Team Blitz Open 2022"]
[Site "Sebes"]
[Date "2022.12.04"]
[Round "7.21"]
[White "Zaim, Marian"]
[Black "Patrascu, Catalin-Lucian"]
[Result "0-1"]
[ECO "A12"]
[WhiteElo "1935"]
[BlackElo "2279"]
[Annotator "TA"]
[PlyCount "98"]
[EventDate "2022.12.04"]
[EventType "blitz"]
[EventCountry "ROU"]
[SourceTitle "playchess.com"]
[Source "ChessBase"]
[SourceQuality "1"]
[TimeControl "180+2"]

{[%evp 20,97,0,0,6,8,19,17,30,0,0,-21,0,7,15,7,0,-13,-1,-6,0,-17,-17,-53,-48,-127,-108,-125,-120,-248,-243,-234,-180,-320,-314,-412,-406,-510,-397,-423,-447,-472,-477,-471,-496,-497,-490,-518,-271,-414,-228,-511,-455,-472,-434,-694,-482,-693,-578,-621,-564,-944,-630,-1050,-997,-987,-922,-907,-895,-904,-889,-972,-1001,-1243,-1097,-29981,-29982,-29998,-29999,-29999]} 1. Nf3 {[%emt 0:00:02]} d5 {[%emt 0:00:01]} 2. c4 {[%emt 0:00:02]} c6 {[%emt 0:00:03]} 3. g3 {[%emt 0:00:03]} Nf6 {[%emt 0:00:02]} 4. Qc2 {[%emt 0:00:02]} Bg4 {[%emt 0:00:11]} 5. Bg2 {[%emt 0:00:01]} Nbd7 {[%emt 0:00:03]} 6. O-O {[%emt 0:00:13]} e6 {[%emt 0:00:00]} 7. b3 {[%emt 0:00:07]} Be7 {[%emt 0:00:07]} 8. Bb2 {[%emt 0:00:02]} O-O {[%emt 0:00:02]} 9. d3 {[%emt 0:00:01]} a5 {[%emt 0:00:03]} 10. a3 {[%emt 0:00:02]} Qb6 {[%emt 0:00:06]} 11. Nbd2 {[%emt 0:00:04][%cal Bb1d2,Bd2f3,Bf3h4,Bh4f5][%mdl 32]} Rfe8 {[%emt 0:00:16] A12: English Opening: 1...c6 with b3 by White.} 12. Bc3 {[%emt 0:00:06]} c5 {[%emt 0:00:08] [#]} 13. h3 $146 {[%emt 0:00:14] Against d4} ({Predecessor:} 13. e3 Bd6 14. h3 Bh5 15. g4 Bg6 16. Nh4 Qc6 17. f4 Qc7 18. Nxg6 hxg6 19. Nf3 {1-0 (59) Cacheiro Martinez,M-Rojas,C IECG email 2000}) 13... Bh5 {[%emt 0:00:03] The position is equal.} 14. Bb2 {[%emt 0:00:10]} d4 {[%emt 0:00:05]} 15. e4 {[%emt 0:00:04]} Bxf3 {[%emt 0:00:27]} 16. Nxf3 {[%emt 0:00:04]} Bd6 {[%emt 0:00:17] Against e5} 17. Rae1 {[%emt 0:00:15]} e5 {[%emt 0:00:03]} 18. Nh4 {[%emt 0:00:02]} a4 {[%emt 0:00:03]} 19. bxa4 {[%emt 0:00:03]} Qa6 {[%emt 0:00:06]} 20. Nf5 {[%emt 0:00:05]} Bf8 {[%emt 0:00:02]} 21. f4 {[%emt 0:00:01]} Qxa4 {[%emt 0:00:02]} 22. Re2 {[%emt 0:00:12]} ({White should play} 22. Qxa4 $15 Rxa4 23. Bf3) 22... b5 {[%emt 0:00:17] [#] And now ...bxc4 would win.} 23. cxb5 {[%emt 0:00:14]} Qxb5 {[%emt 0:00:03]} 24. Rc1 {[%emt 0:00:05] Now White is beyond hope.} (24. Kh2 $17) 24... g6 $19 {[%emt 0:00:17]} 25. Nh4 {[%emt 0:00:01]} Bh6 {[%emt 0:00:03]} 26. Rf2 {[%emt 0:00:06]} (26. Nf3 {keeps fighting.}) 26... Nh5 {[%emt 0:00:19][%csl LRf4,LRg3]} 27. Rcf1 {[%emt 0:00:02]} Nxg3 {[%emt 0:00:02]} 28. Rb1 {[%emt 0:00:15]} Qa4 {[%emt 0:00:10]} (28... exf4 $2 {is the wrong capture.} 29. Bxd4 Qa6 30. Bc3 $19) 29. Qxa4 {[%emt 0:00:03]} Rxa4 {[%emt 0:00:01]} 30. Bc1 {[%emt 0:00:27]} Bxf4 {[%emt 0:00:07]} 31. Bxf4 {[%emt 0:00:03]} exf4 {[%emt 0:00:01]} 32. Ra2 {[%emt 0:00:05]} Ne5 {[%emt 0:00:02]} 33. Rb3 {[%emt 0:00:52]} Nh5 {[%emt 0:00:08]} 34. Kf2 {[%emt 0:00:00]} (34. Nf3 $142) 34... Rc8 {[%emt 0:00:04]} (34... Nf6 $142 35. Kg1 c4 36. dxc4 Rxc4) 35. Bf3 $2 {[%emt 0:00:00]} (35. Nf3 {was forced.} f6 36. Nxe5 fxe5 37. Bf3) 35... Nf6 {[%emt 0:00:05]} 36. Ng2 {[%emt 0:00:00]} g5 {[%emt 0:00:01]} 37. Be2 {[%emt 0:00:00]} (37. Ne1 $142) 37... Kg7 {[%emt 0:00:01]} 38. h4 {[%emt 0:00:00]} (38. Ne1 $142 c4 39. dxc4) 38... h6 {[%emt 0:00:01][%cal Bh7h6,Bh6g5,Bg5g4,Bg4g3][%mdl 32]} 39. Rb5 {[%emt 0:00:00]} Nfg4+ {[%emt 0:00:07]} 40. Ke1 {[%emt 0:00:00]} Ne3 {[%emt 0:00:01]} 41. hxg5 {[%emt 0:00:02]} Nxg2+ {[%emt 0:00:04] Pair of Knights!} 42. Kf2 {[%emt 0:00:00] [#]} hxg5 $1 {[%emt 0:00:03] White must now prevent ...Ne3.} 43. Kxg2 {[%emt 0:00:01]} g4 {[%emt 0:00:03] Hoping for ...f3+.} 44. Bf1 {[%emt 0:00:01]} Kg6 {[%emt 0:00:08] ...g3 is the strong threat.} 45. Rb6+ {[%emt 0:00:01]} f6 {[%emt 0:00:01] aiming for ...g3.} 46. Rb7 {[%emt 0:00:02]} Rh8 {[%emt 0:00:05] ( -> ...g3)} 47. Rb5 {[%emt 0:00:02]} g3 {[%emt 0:00:02] Black mates.} 48. Rbb2 {[%emt 0:00:09]} Rh2+ {[%emt 0:00:02]} 49. Kg1 {[%emt 0:00:03]} Nf3# {[%emt 0:00:12] Weighted Error Value: White=0.77/Black=0.51} 0-1

[Event "Romanian Team Blitz Open 2022"]
[Site "Sebes"]
[Date "2022.12.04"]
[Round "7.22"]
[White "Creanga, Robert-Ionut"]
[Black "Tinta, Gheorghe"]
[Result "1-0"]
[ECO "B38"]
[WhiteElo "2190"]
[BlackElo "1855"]
[Annotator "TA"]
[PlyCount "68"]
[EventDate "2022.12.04"]
[EventType "blitz"]
[EventCountry "ROU"]
[SourceTitle "playchess.com"]
[Source "ChessBase"]
[SourceQuality "1"]
[TimeControl "180+2"]

{[%evp 19,68,42,47,55,64,64,91,60,82,62,145,125,255,235,247,251,243,242,230,255,267,233,297,296,285,205,189,195,292,258,250,162,262,177,218,215,337,241,416,385,626,403,478,20,18,92,115,-4,10,0,91]} 1. d4 {[%emt 0:00:05]} d6 {[%emt 0:00:01]} 2. Nf3 {[%emt 0:03:01]} g6 3. c4 {[%emt 0:00:00]} Bg7 {[%emt 0:00:01]} 4. Nc3 {[%emt 0:00:00]} Nf6 {[%emt 0:00:04]} 5. e4 {[%emt 0:00:00]} O-O {[%emt 0:00:03]} 6. Be2 {[%emt 0:00:00]} c5 {[%emt 0:00:03]} 7. O-O {[%emt 0:00:00]} cxd4 {[%emt 0:00:01]} 8. Nxd4 {[%emt 0:00:00]} Nc6 {[%emt 0:00:01]} 9. Be3 {[%emt 0:00:00]} Bd7 {[%emt 0:00:03]} 10. h3 {[%emt 0:00:00]} Rc8 {[%emt 0:00:01]} 11. Qd2 {[%emt 0:00:00] B38: Sicilian: Maroczy Bind with 5...Bg7 and 7...0-0.} Ne5 {[%emt 0:00:04]} 12. b3 {[%emt 0:00:00]} Qa5 {[%emt 0:00:16]} 13. Rac1 {[%emt 0:00:00] White is better.} a6 {[%emt 0:00:11]} 14. Rfd1 {[%emt 0:00:00] [#]} b5 $146 {[%emt 0:00:30]} ({Better is} 14... Rfe8 $14) ({Predecessor:} 14... Bc6 15. f3 Rfe8 16. Nxc6 Nxc6 17. f4 Rcd8 18. Bf3 Qc7 19. Qf2 Qb8 20. Nd5 b5 21. cxb5 Nxd5 22. exd5 {1-0 (46) Sherwood,P (1671)-MacIntyre,B (1500) San Francisco 2016}) 15. Nd5 {[%emt 0:00:00]} Qd8 {[%emt 0:00:04]} (15... Qxd2 $16 {was necessary.} 16. Nxe7+ (16. Bxd2 Nxd5 17. cxd5 Nd3 $11) 16... Kh8 17. Bxd2 (17. Rxd2 Rce8 $16) 17... Rce8) 16. Nxf6+ $18 {[%emt 0:00:00]} ({Don't do} 16. cxb5 axb5 17. Nxf6+ (17. Nxb5 Nxe4 18. Rxc8 Bxc8 $16) (17. Bxb5 Nxd5 18. exd5 Bxb5 $16) 17... Bxf6 $18) 16... Bxf6 {[%emt 0:00:04]} 17. cxb5 {[%emt 0:00:00]} axb5 {[%emt 0:00:14]} 18. Bxb5 {[%emt 0:00:00]} ({But not} 18. Nxb5 Rxc1 19. Rxc1 Qb8) 18... Bxb5 {[%emt 0:00:17]} 19. Nxb5 {[%emt 0:00:00]} Qd7 {[%emt 0:00:06]} 20. a4 {[%emt 0:00:00][%cal Ba2a4,Ba4a5][%mdl 32]} Qe6 {[%emt 0:00:18]} 21. Rxc8 {[%emt 0:00:00]} Rxc8 {[%emt 0:00:03]} 22. Rb1 {[%emt 0:00:00]} Nc6 {[%emt 0:00:11]} 23. f3 {[%emt 0:00:00]} Ne5 {[%emt 0:00:23]} (23... h5 $142 24. Bb6 Ne5) 24. a5 {[%emt 0:00:00]} Qd7 {[%emt 0:00:07]} 25. Qe2 {[%emt 0:00:00]} Rb8 {[%emt 0:00:09]} (25... Qb7 {is a better defense.} 26. Bf2 Rb8) 26. Bb6 {[%emt 0:00:08]} Nc6 {[%emt 0:00:22][%cal Oc6a5]} 27. b4 {[%emt 0:00:06]} Ne5 {[%emt 0:00:08]} (27... e6 $142 28. Qd2 Bd8 29. Bxd8 (29. Qxd6 Bxb6+ 30. axb6 Qb7 $16) 29... Qxd8) 28. Rc1 {[%emt 0:00:08] Hoping for f4.} e6 $2 {[%emt 0:00:02] [#]} (28... Bg5 29. Rc7 Qe8) 29. Rc7 {[%emt 0:00:03]} Qe8 {[%emt 0:00:05]} (29... Qd8 30. Qc2 Bg5) 30. Nxd6 {[%emt 0:00:06]} Qa4 {[%emt 0:00:03]} 31. Rc8+ $2 {[%emt 0:00:11]} (31. Qd2 $18) 31... Rxc8 $11 {[%emt 0:00:03]} 32. Nxc8 {[%emt 0:00:02] Threatens to win with f4.} Qxb4 {[%emt 0:00:05] [#]} 33. Na7 {[%emt 0:00:04]} ({White has to play} 33. a6 $1 $16) 33... Qb1+ {[%emt 0:00:05]} 34. Qf1 Qb2 {[%emt 0:00:02] Weighted Error Value: White=0.72/Black=0.66} (34... Qb4 $11 {keeps the balance.}) 1-0

[Event "Romanian Team Blitz Open 2022"]
[Site "Sebes"]
[Date "2022.12.04"]
[Round "7.23"]
[White "Dumitrascu, Daniel"]
[Black "Butolo, Alexandru-Mircea"]
[Result "0-1"]
[ECO "B45"]
[WhiteElo "1694"]
[BlackElo "2043"]
[Annotator "TA"]
[PlyCount "32"]
[EventDate "2022.12.04"]
[EventType "blitz"]
[EventCountry "ROU"]
[SourceTitle "playchess.com"]
[Source "ChessBase"]
[SourceQuality "1"]
[TimeControl "180+2"]

{[%evp 16,32,33,22,60,58,67,-114,-100,-112,328,351,362,354,511,-437,-409,-1731,-1675]} 1. e4 {[%emt 0:00:02]} c5 {[%emt 0:00:01]} 2. Nf3 {[%emt 0:00:01]} e6 {[%emt 0:00:03]} 3. d4 {[%emt 0:00:02]} cxd4 {[%emt 0:00:01]} 4. Nxd4 {[%emt 0:00:01]} Nf6 {[%emt 0:00:01][%cal Bg8f6,Bf6d5,Bd5f4][%mdl 32]} 5. Nc3 {[%emt 0:00:01][%cal Bb1c3,Bc3e4,Be4d6][%mdl 32]} Nc6 {[%emt 0:00:00]} 6. Nxc6 {[%emt 0:00:11]} bxc6 {[%emt 0:00:01]} 7. e5 {[%emt 0:00:00]} Nd5 {[%emt 0:00:02]} 8. Ne4 {[%emt 0:00:04]} Qc7 {[%emt 0:00:01]} 9. f4 $1 {[%emt 0:00:08]} Rb8 {[%emt 0:00:01] B45: Sicilian Four Knights.} 10. c4 {[%emt 0:00:15] Inhibits f6.} Bb4+ {[%emt 0:00:02]} 11. Bd2 $2 {[%emt 0:00:05]} ({Don't play} 11. Kf2 f5 12. exf6 Nxf6 13. Nxf6+ gxf6 $11) (11. Ke2 $1 $14 {keeps the upper hand.}) 11... Nxf4 $17 {[%emt 0:00:40] Black is better.} 12. Bxb4 {[%emt 0:00:10] [#] aiming for Nd6+.} Rxb4 $4 {[%emt 0:00:02][%mdl 8192] [#]} (12... Qxe5 $1 $17 {stays on course.} 13. Qd6 Qxe4+ 14. Kd2 {[#]} Rxb4 $1 {[%mdl 512]} 15. Qxb4 Nxg2 16. Bxg2 Qxg2+ 17. Kc3 Qf3+ 18. Kc2 Qf5+ 19. Kb3 c5) 13. Nd6+ $146 {[%emt 0:00:01]} ({Predecessor:} 13. Qd2 Qxe5 14. Qxb4 Qxe4+ 15. Kd1 d5 16. Qd2 e5 17. cxd5 O-O 18. d6 Bg4+ 19. Kc1 {1-0 (31) Golsta,M (1941)-Kaufman,R (2255) Chess.com INT 2020}) 13... Ke7 {[%emt 0:00:23] ...Qa5 is the strong threat.} 14. Qd2 {[%emt 0:00:05]} ({Weaker is} 14. Qg4 Ng6 15. O-O-O Qb6 16. Qg5+ f6 17. exf6+ gxf6 $16) 14... Qa5 {[%emt 0:00:17]} (14... Rxb2 $142 15. Qxb2 Qa5+ 16. Kf2 Qc5+ 17. Kf3 Ng6) 15. g3 $4 {[%emt 0:00:29][%mdl 8192]} (15. Qxf4 Rxb2+ 16. Kd1 Qa4+ 17. Ke1 Qb4+ 18. Kd1 f6 $11) (15. O-O-O $18 {is the narrow road to win. Threatening mate with Nxc8+.} Rxc4+ 16. Bxc4 Qxd2+ 17. Rxd2) 15... Qxe5+ $19 {[%emt 0:00:13]} 16. Kf2 {[%emt 0:00:19]} (16. Kd1 $142 Nd5 17. cxd5 Rxb2 18. Qf4 (18. Nf5+ $2 exf5 19. Qe1 Qxe1+ 20. Kxe1 cxd5 $19) 18... Kxd6 19. Qxe5+ Kxe5 20. dxc6) 16... Rxb2 {[%emt 0:00:06] Weighted Error Value: White=1.53/Black=0.96} 0-1

[Event "Romanian Team Blitz Open 2022"]
[Site "Sebes"]
[Date "2022.12.04"]
[Round "7.24"]
[White "Prelipcean, Eric-Matei"]
[Black "Carac, Radu-Ionut"]
[Result "0-1"]
[ECO "A59"]
[WhiteElo "1909"]
[BlackElo "1569"]
[Annotator "TA"]
[PlyCount "48"]
[EventDate "2022.12.04"]
[EventType "blitz"]
[EventCountry "ROU"]
[SourceTitle "playchess.com"]
[Source "ChessBase"]
[SourceQuality "1"]
[TimeControl "180+2"]

{[%evp 21,48,66,71,59,69,47,62,57,87,62,95,50,70,40,28,-45,-43,-422,-420,-567,-155,-890,-328,-322,-323,-796,-707,-2048,-1904]} 1. d4 {[%emt 0:00:02]} Nf6 {[%emt 0:00:01]} 2. c4 {[%emt 0:00:01]} c5 {[%emt 0:00:03]} 3. d5 {[%emt 0:00:01]} b5 {[%emt 0:00:01]} 4. cxb5 {[%emt 0:00:01]} a6 {[%emt 0:00:01]} 5. bxa6 {[%emt 0:00:01]} Bxa6 {[%emt 0:00:03]} 6. Nc3 {[%emt 0:00:01]} g6 {[%emt 0:03:05]} 7. e4 Bxf1 {[%emt 0:00:00]} 8. Kxf1 {[%emt 0:00:01]} d6 {[%emt 0:00:00]} 9. g3 {[%emt 0:00:01]} Bg7 {[%emt 0:00:00]} 10. Kg2 {[%emt 0:00:01]} O-O {[%emt 0:00:00]} 11. Nf3 {[%emt 0:00:01]} Nbd7 {[%emt 0:00:00]} 12. a4 {[%emt 0:00:02] A59: Benko/Volga Gambit: White castles by hand.} Ra6 {[%emt 0:00:00]} 13. Qe2 {[%emt 0:00:05]} Qa8 {[%emt 0:00:00]} 14. Bd2 {[%emt 0:00:02] White is slightly better.} e6 {[%emt 0:00:00]} 15. dxe6 {[%emt 0:00:10]} fxe6 {[%emt 0:00:00][%cal Bf7e6,Be6d5,Bd5d4][%mdl 32]} 16. Rhd1 {[%emt 0:00:19]} d5 {[%emt 0:00:00]} 17. exd5 {[%emt 0:00:06]} exd5 {[%emt 0:00:00]} 18. Bf4 {[%emt 0:00:17]} (18. Nb5 $11 Rxa4 19. Nc7) 18... d4 $15 {[%emt 0:00:00] [#]} 19. Qc4+ $146 {[%emt 0:00:13][%mdl 8192]} (19. Nb5 $15 Nd5 20. Bd6) ({Predecessor:} 19. Nb5 Nd5 20. Rac1 Rxf4 21. Qc4 Rf7 22. Ng5 Ne3+ {0-1 (22) Vusatiuk,V (2323)-Soto Vega,J (2363) Chess.com INT 2020}) 19... Kh8 $19 {[%emt 0:00:00]} 20. Ne2 {[%emt 0:00:23]} Nh5 $2 {[%emt 0:00:00]} (20... g5 $19 {and Black stays clearly on top.} 21. Kg1 gxf4) 21. b4 $2 {[%emt 0:00:25] This costs White the game.} (21. Kg1 $17) 21... Nxf4+ $2 {[%emt 0:00:00]} (21... Rxa4 22. Rxa4 Qxa4 23. Rd3 $17) (21... Ne5 22. Bxe5 Qxf3+ 23. Kg1 Qxf2+ 24. Kh1 Qf3+ 25. Kg1 Qe3+ 26. Kh1 Qxe5) 22. Nxf4 {[%emt 0:00:03]} g5 {[%emt 0:00:00]} ({Worse is} 22... Rxa4 23. Rxa4 Qxa4 24. Re1 $11) 23. Nd5 {[%emt 0:00:31] [#]} (23. Qd5 gxf4 24. Qxa8 Rfxa8 25. bxc5) 23... Rxf3 $1 {[%emt 0:00:05][%mdl 576] Remove Defender, Decoy} 24. Kxf3 {[%emt 0:00:02]} (24. Kg1 Rxa4) 24... Ne5+ {[%emt 0:00:01] Weighted Error Value: White=1.77/Black=1.00} (24... Rxa4 $2 25. Rxa4 Qxa4 26. Re1 Ne5+ {[#]} 27. Rxe5 $1 {[%mdl 512]} Bxe5 28. Qxc5 $18) 0-1